[Event "Titled Tuesday Blitz July 6 2021"]
[White "Matinian, Nikita"]
[Black "Fernandez, Michael"]
[WhiteFideId "24129100"]
[BlackFideId "5803560"]
[WhiteElo "2410"]
[BlackElo "2110"]
[Result "0-1"]
[Round "02"]
[TimeControl "180+1"]
[Date "2021.07.06"]
[WhiteClock "0:00:02"]
[BlackClock "0:00:11"]

1. d4 {[%clk 0:03:00]}  b5 {[%clk 0:02:56]} 2. e4 {[%clk 0:02:56]}  Bb7 {[%clk 0:02:56]} 3. Nd2 {[%clk 0:02:52]}  b4 {[%clk 0:02:55]} 4. Ngf3 {[%clk 0:02:50]}  e6 {[%clk 0:02:53]} 5. c4 {[%clk 0:02:46]}  Nf6 {[%clk 0:02:49]} 6. Bd3 {[%clk 0:02:46]}  d6 {[%clk 0:02:36]} 7. O-O {[%clk 0:02:45]}  Be7 {[%clk 0:02:36]} 8. b3 {[%clk 0:02:44]}  O-O {[%clk 0:02:36]} 9. Bb2 {[%clk 0:02:44]}  c5 {[%clk 0:02:31]} 10. d5 {[%clk 0:02:44]}  e5 {[%clk 0:02:25]} 11. g3 {[%clk 0:02:37]}  Nbd7 {[%clk 0:02:25]} 12. Nh4 {[%clk 0:02:37]}  Re8 {[%clk 0:02:23]} 13. Nf5 {[%clk 0:02:32]}  Bf8 {[%clk 0:02:23]} 14. f4 {[%clk 0:02:32]}  g6 {[%clk 0:02:20]} 15. Ne3 {[%clk 0:02:30]}  exf4 {[%clk 0:02:14]} 16. gxf4 {[%clk 0:02:31]}  Bg7 {[%clk 0:02:14]} 17. Qc2 {[%clk 0:02:22]}  Re7 {[%clk 0:01:52]} 18. Rae1 {[%clk 0:02:21]}  Qf8 {[%clk 0:01:52]} 19. Nf3 {[%clk 0:02:15]}  Rae8 {[%clk 0:01:46]} 20. Ng2 {[%clk 0:02:09]}  Bc8 {[%clk 0:01:32]} 21. e5 {[%clk 0:02:06]}  Nh5 {[%clk 0:01:27]} 22. e6 {[%clk 0:01:37]}  fxe6 {[%clk 0:01:14]} 23. dxe6 {[%clk 0:01:23]}  Nb6 {[%clk 0:01:10]} 24. Ng5 {[%clk 0:01:14]}  Bxb2 {[%clk 0:01:03]} 25. Qxb2 {[%clk 0:01:15]}  Qf6 {[%clk 0:01:00]} 26. Qxf6 {[%clk 0:01:11]}  Nxf6 {[%clk 0:01:00]} 27. f5 {[%clk 0:01:11]}  Kg7 {[%clk 0:00:47]} 28. Nh4 {[%clk 0:00:56]}  h6 {[%clk 0:00:45]} 29. fxg6 {[%clk 0:00:56]}  hxg5 {[%clk 0:00:38]} 30. Nf5+ {[%clk 0:00:56]}  Kf8 {[%clk 0:00:37]} 31. Nxd6 {[%clk 0:00:49]}  Kg7 {[%clk 0:00:20]} 32. Nxe8+ {[%clk 0:00:34]}  Rxe8 {[%clk 0:00:21]} 33. e7 {[%clk 0:00:35]}  Bg4 {[%clk 0:00:14]} 34. Re5 {[%clk 0:00:33]}  Nbd7 {[%clk 0:00:14]} 35. Rxg5 {[%clk 0:00:33]}  Rxe7 {[%clk 0:00:14]} 36. h4 {[%clk 0:00:19]}  Ne5 {[%clk 0:00:13]} 37. Bf5 {[%clk 0:00:08]}  Nf3+ {[%clk 0:00:12]} 38. Kg2 {[%clk 0:00:05]}  Nxg5 {[%clk 0:00:11]} 39. hxg5 {[%clk 0:00:05]}  Bxf5 {[%clk 0:00:10]} 40. Rxf5 {[%clk 0:00:05]}  Ne4 {[%clk 0:00:10]} 41. Kf3 {[%clk 0:00:04]}  Kxg6 {[%clk 0:00:10]} 42. Kg4 {[%clk 0:00:05]}  Rd7 {[%clk 0:00:07]} 43. Re5 {[%clk 0:00:05]}  Rd4 {[%clk 0:00:08]} 44. Re6+ {[%clk 0:00:05]}  Nf6+ {[%clk 0:00:08]} 45. Kf3 {[%clk 0:00:04]}  Kxg5 {[%clk 0:00:09]} 46. Rc6 {[%clk 0:00:04]}  Rd2 {[%clk 0:00:08]} 47. Rxc5+ {[%clk 0:00:03]}  Kg6 {[%clk 0:00:09]} 48. Ra5 {[%clk 0:00:04]}  Kf7 {[%clk 0:00:09]} 49. Rxa7+ {[%clk 0:00:04]}  Ke6 {[%clk 0:00:09]} 50. Ra6+ {[%clk 0:00:04]}  Ke5 {[%clk 0:00:09]} 51. Ke3 {[%clk 0:00:05]}  Rh2 {[%clk 0:00:09]} 52. Ra5+ {[%clk 0:00:05]}  Kd6 {[%clk 0:00:09]} 53. Kf4 {[%clk 0:00:03]}  Nd7 {[%clk 0:00:09]} 54. Ra6+ {[%clk 0:00:02]}  Kc5 {[%clk 0:00:09]} 55. Ra5+ {[%clk 0:00:03]}  Kc6 {[%clk 0:00:09]} 56. Ra4 {[%clk 0:00:03]}  Kc5 {[%clk 0:00:09]} 57. Ra7 {[%clk 0:00:02]}  Nb6 {[%clk 0:00:09]} 58. Ra5+ {[%clk 0:00:03]}  Kc6 {[%clk 0:00:09]} 59. Ke3 {[%clk 0:00:03]}  Rc2 {[%clk 0:00:09]} 60. Kd3 {[%clk 0:00:03]}  Rc3+ {[%clk 0:00:09]} 61. Kd4 {[%clk 0:00:03]}  Rc2 {[%clk 0:00:09]} 62. Kd3 {[%clk 0:00:03]}  Rh2 {[%clk 0:00:09]} 63. Ra6 {[%clk 0:00:02]}  Rh3+ {[%clk 0:00:09]} 64. Kd4 {[%clk 0:00:02]}  Rh4+ {[%clk 0:00:10]} 65. Ke3 {[%clk 0:00:03]}  Rh3+ {[%clk 0:00:10]} 66. Kd4 {[%clk 0:00:03]}  Rh2 {[%clk 0:00:11]} 67. Ra5 {[%clk 0:00:03]}  Kb7 {[%clk 0:00:12]} 68. c5 {[%clk 0:00:02]}  Nd7 {[%clk 0:00:11]} 0-1


[Site "https://www.chess.com"]

[Event "Titled Tuesday Blitz July 6 2021"]
[White "Mezentsev, Ivan"]
[Black "Baradaran, Arman"]
[WhiteFideId "13706195"]
[BlackFideId "880515"]
[WhiteElo "2295"]
[BlackElo "2132"]
[Result "1-0"]
[Round "02"]
[TimeControl "180+1"]
[Date "2021.07.06"]
[WhiteClock "0:01:24"]
[BlackClock "0:00:01"]

1. d4 {[%clk 0:03:00]}  d5 {[%clk 0:02:59]} 2. Nf3 {[%clk 0:03:00]}  Nf6 {[%clk 0:02:59]} 3. Bf4 {[%clk 0:03:01]}  e6 {[%clk 0:02:58]} 4. e3 {[%clk 0:02:59]}  c5 {[%clk 0:02:58]} 5. Nbd2 {[%clk 0:02:58]}  Nc6 {[%clk 0:02:58]} 6. c3 {[%clk 0:02:56]}  Bd6 {[%clk 0:02:58]} 7. Bg3 {[%clk 0:02:55]}  Qc7 {[%clk 0:02:45]} 8. dxc5 {[%clk 0:02:54]}  Bxg3 {[%clk 0:02:45]} 9. hxg3 {[%clk 0:02:52]}  e5 {[%clk 0:02:45]} 10. b4 {[%clk 0:02:48]}  Bg4 {[%clk 0:02:32]} 11. Be2 {[%clk 0:02:48]}  a5 {[%clk 0:02:28]} 12. a3 {[%clk 0:02:46]}  e4 {[%clk 0:02:21]} 13. Nd4 {[%clk 0:02:40]}  Ne5 {[%clk 0:02:17]} 14. Nb5 {[%clk 0:02:31]}  Qe7 {[%clk 0:01:49]} 15. Nd6+ {[%clk 0:02:30]}  Kf8 {[%clk 0:01:48]} 16. O-O {[%clk 0:02:28]}  h5 {[%clk 0:01:28]} 17. f3 {[%clk 0:02:03]}  exf3 {[%clk 0:01:20]} 18. gxf3 {[%clk 0:01:56]}  Bh3 {[%clk 0:01:20]} 19. Rf2 {[%clk 0:01:55]}  h4 {[%clk 0:00:32]} 20. g4 {[%clk 0:01:54]}  Nexg4 {[%clk 0:00:28]} 21. fxg4 {[%clk 0:01:51]}  Qxe3 {[%clk 0:00:29]} 22. Nf1 {[%clk 0:01:42]}  Bxf1 {[%clk 0:00:24]} 23. Bxf1 {[%clk 0:01:43]}  h3 {[%clk 0:00:21]} 24. Qf3 {[%clk 0:01:42]}  h2+ {[%clk 0:00:08]} 25. Kh1 {[%clk 0:01:42]}  Qxf3+ {[%clk 0:00:05]} 26. Rxf3 {[%clk 0:01:41]}  Nxg4 {[%clk 0:00:06]} 27. Rxf7+ {[%clk 0:01:37]}  Kg8 {[%clk 0:00:07]} 28. Bg2 {[%clk 0:01:36]}  Rf8 {[%clk 0:00:05]} 29. Rxf8+ {[%clk 0:01:31]}  Kxf8 {[%clk 0:00:06]} 30. Rf1+ {[%clk 0:01:30]}  Ke7 {[%clk 0:00:06]} 31. Bxd5 {[%clk 0:01:26]}  Ne3 {[%clk 0:00:01]} 32. Rf7+ {[%clk 0:01:25]}  Kd8 {[%clk 0:00:01]} 33. Be6 {[%clk 0:01:24]} 1-0


[Site "https://www.chess.com"]

[Event "Titled Tuesday Blitz July 6 2021"]
[White "Mikhalsky, Vladimir"]
[Black "Pruijssers, Roeland"]
[WhiteFideId "14144352"]
[BlackFideId "1013068"]
[WhiteElo "2280"]
[BlackElo "2545"]
[Result "0-1"]
[Round "02"]
[TimeControl "180+1"]
[Date "2021.07.06"]
[WhiteClock "0:00:21"]
[BlackClock "0:00:39"]

1. c4 {[%clk 0:02:45]}  f5 {[%clk 0:02:58]} 2. b3 {[%clk 0:02:44]}  e5 {[%clk 0:02:49]} 3. Bb2 {[%clk 0:02:43]}  d6 {[%clk 0:02:49]} 4. Nf3 {[%clk 0:02:41]}  Nf6 {[%clk 0:02:48]} 5. d4 {[%clk 0:02:40]}  e4 {[%clk 0:02:48]} 6. Nfd2 {[%clk 0:02:40]}  e3 {[%clk 0:02:42]} 7. fxe3 {[%clk 0:02:39]}  Ng4 {[%clk 0:02:40]} 8. Nf3 {[%clk 0:02:36]}  Nxe3 {[%clk 0:02:28]} 9. Qd3 {[%clk 0:02:35]}  f4 {[%clk 0:02:25]} 10. Qe4+ {[%clk 0:02:29]}  Qe7 {[%clk 0:02:21]} 11. Qxf4 {[%clk 0:02:28]}  Nc2+ {[%clk 0:02:21]} 12. Kf2 {[%clk 0:02:28]}  Nxa1 {[%clk 0:02:21]} 13. Bxa1 {[%clk 0:02:28]}  g6 {[%clk 0:02:12]} 14. Nc3 {[%clk 0:02:24]}  c6 {[%clk 0:02:12]} 15. Ne4 {[%clk 0:02:22]}  Bf5 {[%clk 0:02:09]} 16. d5 {[%clk 0:02:19]}  Qxe4 {[%clk 0:01:58]} 17. Qxe4+ {[%clk 0:02:17]}  Bxe4 {[%clk 0:01:59]} 18. Bxh8 {[%clk 0:02:16]}  cxd5 {[%clk 0:01:59]} 19. Ng5 {[%clk 0:02:09]}  Bh6 {[%clk 0:01:42]} 20. h4 {[%clk 0:02:04]}  Nc6 {[%clk 0:01:34]} 21. cxd5 {[%clk 0:02:00]}  Bxd5 {[%clk 0:01:31]} 22. e4 {[%clk 0:01:59]}  Bg8 {[%clk 0:01:29]} 23. Bf6 {[%clk 0:01:54]}  Kd7 {[%clk 0:01:28]} 24. Kg3 {[%clk 0:01:44]}  Rf8 {[%clk 0:01:27]} 25. Bc3 {[%clk 0:01:44]}  Ne5 {[%clk 0:01:18]} 26. Bb5+ {[%clk 0:01:40]}  Ke7 {[%clk 0:01:15]} 27. Rf1 {[%clk 0:01:38]}  a6 {[%clk 0:01:10]} 28. Rxf8 {[%clk 0:01:35]}  Bxf8 {[%clk 0:01:11]} 29. Be2 {[%clk 0:01:34]}  Bg7 {[%clk 0:01:01]} 30. Nf3 {[%clk 0:01:23]}  Bf6 {[%clk 0:01:00]} 31. Nxe5 {[%clk 0:01:22]}  Bxe5+ {[%clk 0:01:00]} 32. Bxe5 {[%clk 0:01:20]}  dxe5 {[%clk 0:01:01]} 33. Kf2 {[%clk 0:01:10]}  Kd6 {[%clk 0:01:00]} 34. Ke3 {[%clk 0:01:08]}  Kc5 {[%clk 0:01:01]} 35. Bg4 {[%clk 0:01:04]}  a5 {[%clk 0:00:54]} 36. Bc8 {[%clk 0:01:02]}  b6 {[%clk 0:00:53]} 37. Kd3 {[%clk 0:00:55]}  Kb4 {[%clk 0:00:53]} 38. Kc2 {[%clk 0:00:54]}  a4 {[%clk 0:00:52]} 39. Kb2 {[%clk 0:00:42]}  axb3 {[%clk 0:00:49]} 40. axb3 {[%clk 0:00:42]}  Bxb3 {[%clk 0:00:48]} 41. Bd7 {[%clk 0:00:39]}  Bd1 {[%clk 0:00:42]} 42. Kc1 {[%clk 0:00:38]}  Ba4 {[%clk 0:00:40]} 43. Be6 {[%clk 0:00:35]}  Bb3 {[%clk 0:00:40]} 44. Bd7 {[%clk 0:00:33]}  Kc3 {[%clk 0:00:40]} 45. g4 {[%clk 0:00:25]}  Bc4 {[%clk 0:00:37]} 46. h5 {[%clk 0:00:24]}  gxh5 {[%clk 0:00:37]} 47. gxh5 {[%clk 0:00:22]}  h6 {[%clk 0:00:37]} 48. Bf5 {[%clk 0:00:22]}  b5 {[%clk 0:00:37]} 49. Kb1 {[%clk 0:00:21]}  b4 {[%clk 0:00:37]} 50. Kc1 {[%clk 0:00:21]}  b3 {[%clk 0:00:38]} 51. Kb1 {[%clk 0:00:21]}  Bd3+ {[%clk 0:00:38]} 52. Kc1 {[%clk 0:00:21]}  b2+ {[%clk 0:00:39]} 0-1


[Site "https://www.chess.com"]

[Event "Titled Tuesday Blitz July 6 2021"]
[White "Mons, Leon"]
[Black "Yaniuk, Volodymyr"]
[WhiteFideId "4614950"]
[BlackFideId "14133083"]
[WhiteElo "2492"]
[BlackElo "2207"]
[Result "0-1"]
[Round "02"]
[TimeControl "180+1"]
[Date "2021.07.06"]
[WhiteClock "0:00:15"]
[BlackClock "0:00:18"]

1. Nf3 {[%clk 0:03:00]}  d5 {[%clk 0:02:59]} 2. e3 {[%clk 0:02:59]}  Bg4 {[%clk 0:02:58]} 3. c4 {[%clk 0:02:58]}  c6 {[%clk 0:02:54]} 4. Qb3 {[%clk 0:02:57]}  Qb6 {[%clk 0:02:51]} 5. Ne5 {[%clk 0:02:57]}  Be6 {[%clk 0:02:43]} 6. d4 {[%clk 0:02:56]}  f6 {[%clk 0:02:39]} 7. Nf3 {[%clk 0:02:39]}  Bf7 {[%clk 0:02:34]} 8. Nc3 {[%clk 0:02:34]}  e6 {[%clk 0:02:28]} 9. Bd3 {[%clk 0:02:15]}  Nd7 {[%clk 0:02:22]} 10. O-O {[%clk 0:02:14]}  a6 {[%clk 0:02:02]} 11. e4 {[%clk 0:02:01]}  Qxb3 {[%clk 0:02:00]} 12. axb3 {[%clk 0:02:02]}  Bb4 {[%clk 0:01:58]} 13. Ra4 {[%clk 0:01:53]}  Bxc3 {[%clk 0:01:52]} 14. bxc3 {[%clk 0:01:54]}  Ne7 {[%clk 0:01:49]} 15. Bf4 {[%clk 0:01:50]}  O-O {[%clk 0:01:48]} 16. Bd6 {[%clk 0:01:46]}  Rfe8 {[%clk 0:01:48]} 17. Re1 {[%clk 0:01:45]}  Nc8 {[%clk 0:01:43]} 18. Bg3 {[%clk 0:01:45]}  Ncb6 {[%clk 0:01:38]} 19. Ra5 {[%clk 0:01:36]}  dxc4 {[%clk 0:01:35]} 20. bxc4 {[%clk 0:01:36]}  e5 {[%clk 0:01:32]} 21. c5 {[%clk 0:01:22]}  Nc4 {[%clk 0:01:13]} 22. Raa1 {[%clk 0:01:21]}  b5 {[%clk 0:01:02]} 23. cxb6 {[%clk 0:01:17]}  Ndxb6 {[%clk 0:01:02]} 24. dxe5 {[%clk 0:00:58]}  fxe5 {[%clk 0:01:03]} 25. Ng5 {[%clk 0:00:58]}  Bg6 {[%clk 0:01:03]} 26. f3 {[%clk 0:00:57]}  h6 {[%clk 0:01:02]} 27. Nh3 {[%clk 0:00:57]}  a5 {[%clk 0:00:59]} 28. Bf2 {[%clk 0:00:50]}  Red8 {[%clk 0:00:53]} 29. Bf1 {[%clk 0:00:50]}  Bf7 {[%clk 0:00:50]} 30. Reb1 {[%clk 0:00:47]}  Rdb8 {[%clk 0:00:46]} 31. Bc5 {[%clk 0:00:38]}  Nd7 {[%clk 0:00:42]} 32. Rxb8+ {[%clk 0:00:33]}  Rxb8 {[%clk 0:00:40]} 33. Bxc4 {[%clk 0:00:33]}  Bxc4 {[%clk 0:00:34]} 34. Rxa5 {[%clk 0:00:32]}  Rb1+ {[%clk 0:00:30]} 35. Kf2 {[%clk 0:00:32]}  Rb2+ {[%clk 0:00:31]} 36. Kg3 {[%clk 0:00:30]}  Nf6 {[%clk 0:00:22]} 37. Nf2 {[%clk 0:00:22]}  Nh5+ {[%clk 0:00:22]} 38. Kh4 {[%clk 0:00:21]}  Nf4 {[%clk 0:00:22]} 39. g3 {[%clk 0:00:18]}  g5+ {[%clk 0:00:18]} 40. Kg4 {[%clk 0:00:15]}  Be6# {[%clk 0:00:18]} 0-1


[Site "https://www.chess.com"]

[Event "Titled Tuesday Blitz July 6 2021"]
[White "Naroditsky, Daniel"]
[Black "Grebeniuk, Semen"]
[WhiteFideId "2026961"]
[BlackFideId "14117509"]
[WhiteElo "2608"]
[BlackElo "2232"]
[Result "1-0"]
[Round "02"]
[TimeControl "180+1"]
[Date "2021.07.06"]
[WhiteClock "0:00:34"]
[BlackClock "0:00:02"]

1. e4 {[%clk 0:03:00]}  d5 {[%clk 0:03:00]} 2. Nc3 {[%clk 0:03:00]}  dxe4 {[%clk 0:03:00]} 3. Nxe4 {[%clk 0:03:00]}  Qd5 {[%clk 0:03:00]} 4. Nc3 {[%clk 0:02:59]}  Qa5 {[%clk 0:03:00]} 5. Nf3 {[%clk 0:02:56]}  Nf6 {[%clk 0:03:01]} 6. g3 {[%clk 0:02:57]}  c6 {[%clk 0:02:59]} 7. Bg2 {[%clk 0:02:57]}  Bg4 {[%clk 0:03:00]} 8. h3 {[%clk 0:02:56]}  Bxf3 {[%clk 0:03:00]} 9. Bxf3 {[%clk 0:02:55]}  Nbd7 {[%clk 0:03:00]} 10. O-O {[%clk 0:02:56]}  e6 {[%clk 0:03:00]} 11. d3 {[%clk 0:02:54]}  Bd6 {[%clk 0:02:59]} 12. a3 {[%clk 0:02:49]}  O-O {[%clk 0:02:56]} 13. Rb1 {[%clk 0:02:46]}  Qc7 {[%clk 0:02:56]} 14. Bg2 {[%clk 0:02:42]}  a5 {[%clk 0:02:55]} 15. b4 {[%clk 0:02:40]}  axb4 {[%clk 0:02:55]} 16. axb4 {[%clk 0:02:41]}  Rfd8 {[%clk 0:02:45]} 17. b5 {[%clk 0:02:41]}  c5 {[%clk 0:02:33]} 18. b6 {[%clk 0:02:12]}  Nxb6 {[%clk 0:02:13]} 19. Nb5 {[%clk 0:02:13]}  Qe7 {[%clk 0:02:05]} 20. Nxd6 {[%clk 0:02:12]}  Rxd6 {[%clk 0:02:06]} 21. Bf4 {[%clk 0:01:57]}  e5 {[%clk 0:02:06]} 22. Re1 {[%clk 0:01:58]}  Re6 {[%clk 0:02:00]} 23. Rxe5 {[%clk 0:01:41]}  Rxe5 {[%clk 0:01:53]} 24. Bxe5 {[%clk 0:01:42]}  Qxe5 {[%clk 0:01:37]} 25. Rxb6 {[%clk 0:01:42]}  h5 {[%clk 0:01:04]} 26. Rxb7 {[%clk 0:01:35]}  Ra1 {[%clk 0:01:04]} 27. Rb1 {[%clk 0:01:34]}  Rxb1 {[%clk 0:01:04]} 28. Qxb1 {[%clk 0:01:35]}  h4 {[%clk 0:01:04]} 29. g4 {[%clk 0:01:34]}  Qc3 {[%clk 0:00:58]} 30. g5 {[%clk 0:01:00]}  Nd7 {[%clk 0:00:34]} 31. Qd1 {[%clk 0:00:52]}  Ne5 {[%clk 0:00:25]} 32. Qe2 {[%clk 0:00:52]}  g6 {[%clk 0:00:18]} 33. f4 {[%clk 0:00:45]}  Nd7 {[%clk 0:00:08]} 34. Qf2 {[%clk 0:00:45]}  Nf8 {[%clk 0:00:06]} 35. Bd5 {[%clk 0:00:45]}  Kg7 {[%clk 0:00:05]} 36. f5 {[%clk 0:00:35]}  gxf5 {[%clk 0:00:04]} 37. Qxf5 {[%clk 0:00:36]}  Qd4+ {[%clk 0:00:04]} 38. Kg2 {[%clk 0:00:36]}  Ne6 {[%clk 0:00:03]} 39. Bxe6 {[%clk 0:00:34]}  fxe6 {[%clk 0:00:04]} 40. Qxe6 {[%clk 0:00:35]}  Qc3 {[%clk 0:00:03]} 41. Qf6+ {[%clk 0:00:32]}  Qxf6 {[%clk 0:00:03]} 42. gxf6+ {[%clk 0:00:33]}  Kxf6 {[%clk 0:00:04]} 43. Kf3 {[%clk 0:00:33]}  Kf5 {[%clk 0:00:05]} 44. c3 {[%clk 0:00:33]}  Ke5 {[%clk 0:00:01]} 45. Kg4 {[%clk 0:00:33]}  Kf6 {[%clk 0:00:01]} 46. Kxh4 {[%clk 0:00:34]}  Ke5 {[%clk 0:00:02]} 47. Kg5 {[%clk 0:00:34]}  c4 {[%clk 0:00:02]} 48. dxc4 {[%clk 0:00:34]} 1-0


[Site "https://www.chess.com"]

[Event "Titled Tuesday Blitz July 6 2021"]
[White "Nouri, Alekhine"]
[Black "Andreikin, Dmitry"]
[WhiteFideId "5216184"]
[BlackFideId "4158814"]
[WhiteElo "1894"]
[BlackElo "2782"]
[Result "0-1"]
[Round "02"]
[TimeControl "180+1"]
[Date "2021.07.06"]
[WhiteClock "0:00:17"]
[BlackClock "0:00:09"]

1. e4 {[%clk 0:02:33]}  c5 {[%clk 0:02:59]} 2. Nc3 {[%clk 0:02:33]}  Nc6 {[%clk 0:02:57]} 3. Bb5 {[%clk 0:02:32]}  Nd4 {[%clk 0:02:55]} 4. Nf3 {[%clk 0:02:32]}  e6 {[%clk 0:02:46]} 5. Nxd4 {[%clk 0:02:32]}  cxd4 {[%clk 0:02:45]} 6. Ne2 {[%clk 0:02:33]}  Qg5 {[%clk 0:02:43]} 7. Bc4 {[%clk 0:02:20]}  Qxg2 {[%clk 0:02:42]} 8. Rg1 {[%clk 0:02:21]}  Qxe4 {[%clk 0:02:24]} 9. d3 {[%clk 0:02:21]}  Qf3 {[%clk 0:02:12]} 10. Rg3 {[%clk 0:02:16]}  Qh1+ {[%clk 0:02:11]} 11. Rg1 {[%clk 0:02:16]}  Qf3 {[%clk 0:02:07]} 12. Rg3 {[%clk 0:02:16]}  Qc6 {[%clk 0:02:06]} 13. Nxd4 {[%clk 0:02:15]}  Qh1+ {[%clk 0:02:05]} 14. Kd2 {[%clk 0:02:16]}  Qxd1+ {[%clk 0:02:00]} 15. Kxd1 {[%clk 0:02:17]}  d5 {[%clk 0:01:54]} 16. Bb3 {[%clk 0:02:13]}  Bd7 {[%clk 0:01:51]} 17. a4 {[%clk 0:02:13]}  a6 {[%clk 0:01:45]} 18. f4 {[%clk 0:02:12]}  g6 {[%clk 0:01:40]} 19. f5 {[%clk 0:02:10]}  gxf5 {[%clk 0:01:36]} 20. Bf4 {[%clk 0:02:09]}  Nf6 {[%clk 0:01:28]} 21. Be5 {[%clk 0:02:08]}  Be7 {[%clk 0:01:27]} 22. Kd2 {[%clk 0:01:57]}  O-O-O {[%clk 0:01:24]} 23. c4 {[%clk 0:01:51]}  Bc6 {[%clk 0:01:06]} 24. Nxc6 {[%clk 0:01:46]}  bxc6 {[%clk 0:01:06]} 25. cxd5 {[%clk 0:01:46]}  cxd5 {[%clk 0:00:53]} 26. Rc1+ {[%clk 0:01:41]}  Kd7 {[%clk 0:00:53]} 27. a5 {[%clk 0:01:40]}  Ke8 {[%clk 0:00:49]} 28. Ba4+ {[%clk 0:01:32]}  Kf8 {[%clk 0:00:49]} 29. Bf4 {[%clk 0:01:31]}  h5 {[%clk 0:00:45]} 30. Rc7 {[%clk 0:01:19]}  Bb4+ {[%clk 0:00:38]} 31. Ke2 {[%clk 0:01:16]}  Bxa5 {[%clk 0:00:38]} 32. Ra7 {[%clk 0:01:15]}  Bb6 {[%clk 0:00:37]} 33. Rxa6 {[%clk 0:01:14]}  Bd4 {[%clk 0:00:38]} 34. Bd6+ {[%clk 0:01:07]}  Rxd6 {[%clk 0:00:37]} 35. Rxd6 {[%clk 0:00:57]}  Ke7 {[%clk 0:00:37]} 36. Rc6 {[%clk 0:00:52]}  Be5 {[%clk 0:00:27]} 37. Rg1 {[%clk 0:00:42]}  Rb8 {[%clk 0:00:21]} 38. b3 {[%clk 0:00:40]}  Bxh2 {[%clk 0:00:21]} 39. Rg7 {[%clk 0:00:38]}  Be5 {[%clk 0:00:18]} 40. Ra6 {[%clk 0:00:38]}  Kf8 {[%clk 0:00:17]} 41. Rg1 {[%clk 0:00:33]}  h4 {[%clk 0:00:17]} 42. Rh1 {[%clk 0:00:33]}  Bg3 {[%clk 0:00:17]} 43. Kf3 {[%clk 0:00:33]}  Rb4 {[%clk 0:00:16]} 44. Ra8+ {[%clk 0:00:29]}  Kg7 {[%clk 0:00:15]} 45. Rc8 {[%clk 0:00:29]}  Rf4+ {[%clk 0:00:15]} 46. Kg2 {[%clk 0:00:28]}  Ng4 {[%clk 0:00:13]} 47. Rcc1 {[%clk 0:00:22]}  Kf6 {[%clk 0:00:12]} 48. Rb1 {[%clk 0:00:20]}  Rf2+ {[%clk 0:00:12]} 49. Kh3 {[%clk 0:00:20]}  Rd2 {[%clk 0:00:12]} 50. b4 {[%clk 0:00:19]}  Nf2+ {[%clk 0:00:12]} 51. Kg2 {[%clk 0:00:18]}  Nxd3+ {[%clk 0:00:12]} 52. Kf3 {[%clk 0:00:18]}  d4 {[%clk 0:00:09]} 53. b5 {[%clk 0:00:17]}  Ne5# {[%clk 0:00:09]} 0-1


[Site "https://www.chess.com"]

[Event "Titled Tuesday Blitz July 6 2021"]
[White "Pereira, Juliano Resende M"]
[Black "Leiva, Gianmarco"]
[WhiteFideId "2109816"]
[BlackFideId "3804399"]
[WhiteElo "2416"]
[BlackElo "2365"]
[Result "1-0"]
[Round "02"]
[TimeControl "180+1"]
[Date "2021.07.06"]
[WhiteClock "0:00:25"]
[BlackClock "0:00:01"]

1. c4 {[%clk 0:02:54]}  Nf6 {[%clk 0:02:50]} 2. g3 {[%clk 0:02:54]}  e6 {[%clk 0:02:47]} 3. Bg2 {[%clk 0:02:51]}  d5 {[%clk 0:02:47]} 4. b3 {[%clk 0:02:50]}  Be7 {[%clk 0:02:42]} 5. Bb2 {[%clk 0:02:49]}  O-O {[%clk 0:02:42]} 6. Nf3 {[%clk 0:02:43]}  c5 {[%clk 0:02:41]} 7. cxd5 {[%clk 0:02:41]}  Nxd5 {[%clk 0:02:41]} 8. Nc3 {[%clk 0:02:37]}  Nc6 {[%clk 0:02:36]} 9. Nxd5 {[%clk 0:02:35]}  exd5 {[%clk 0:02:34]} 10. O-O {[%clk 0:02:28]}  Bg4 {[%clk 0:02:22]} 11. h3 {[%clk 0:02:25]}  Bh5 {[%clk 0:02:14]} 12. d3 {[%clk 0:02:23]}  Bf6 {[%clk 0:02:13]} 13. Qd2 {[%clk 0:02:22]}  Re8 {[%clk 0:02:07]} 14. Rac1 {[%clk 0:02:20]}  b6 {[%clk 0:02:06]} 15. Rfe1 {[%clk 0:02:17]}  Rc8 {[%clk 0:02:03]} 16. a3 {[%clk 0:02:14]}  Qd6 {[%clk 0:01:58]} 17. e3 {[%clk 0:02:08]}  a5 {[%clk 0:01:12]} 18. Nh2 {[%clk 0:01:58]}  Rcd8 {[%clk 0:01:09]} 19. Qc2 {[%clk 0:01:26]}  h6 {[%clk 0:00:59]} 20. Bxf6 {[%clk 0:01:21]}  Qxf6 {[%clk 0:00:58]} 21. d4 {[%clk 0:01:22]}  a4 {[%clk 0:00:10]} 22. dxc5 {[%clk 0:01:13]}  Bg6 {[%clk 0:00:11]} 23. Qc3 {[%clk 0:01:11]}  d4 {[%clk 0:00:11]} 24. exd4 {[%clk 0:01:09]}  Nxd4 {[%clk 0:00:12]} 25. Ng4 {[%clk 0:00:30]}  Ne2+ {[%clk 0:00:02]} 26. Rxe2 {[%clk 0:00:29]}  Qxc3 {[%clk 0:00:02]} 27. Rxe8+ {[%clk 0:00:29]}  Rxe8 {[%clk 0:00:02]} 28. Rxc3 {[%clk 0:00:30]}  Re1+ {[%clk 0:00:02]} 29. Kh2 {[%clk 0:00:29]}  bxc5 {[%clk 0:00:01]} 30. bxa4 {[%clk 0:00:25]} 1-0


[Site "https://www.chess.com"]

[Event "Titled Tuesday Blitz July 6 2021"]
[White "Priasmoro, Novendra"]
[Black "Nygren, Kim"]
[WhiteFideId "7105029"]
[BlackFideId "1706136"]
[WhiteElo "2309"]
[BlackElo "2257"]
[Result "1-0"]
[Round "02"]
[TimeControl "180+1"]
[Date "2021.07.06"]
[WhiteClock "0:00:54"]
[BlackClock "0:00:09"]

1. e4 {[%clk 0:03:00]}  c5 {[%clk 0:02:57]} 2. Nf3 {[%clk 0:03:00]}  d6 {[%clk 0:02:51]} 3. d4 {[%clk 0:03:00]}  cxd4 {[%clk 0:02:50]} 4. Nxd4 {[%clk 0:03:01]}  Nf6 {[%clk 0:02:49]} 5. Nc3 {[%clk 0:03:01]}  a6 {[%clk 0:02:49]} 6. Bg5 {[%clk 0:03:02]}  e6 {[%clk 0:02:42]} 7. f4 {[%clk 0:03:02]}  b5 {[%clk 0:02:39]} 8. Qf3 {[%clk 0:03:02]}  b4 {[%clk 0:02:38]} 9. Na4 {[%clk 0:02:55]}  Bb7 {[%clk 0:02:32]} 10. Bd3 {[%clk 0:02:55]}  Be7 {[%clk 0:02:26]} 11. O-O-O {[%clk 0:02:53]}  Qa5 {[%clk 0:02:24]} 12. b3 {[%clk 0:02:51]}  Nbd7 {[%clk 0:02:23]} 13. Kb1 {[%clk 0:02:35]}  Nc5 {[%clk 0:02:16]} 14. Nb2 {[%clk 0:02:31]}  d5 {[%clk 0:02:11]} 15. e5 {[%clk 0:02:30]}  Nfe4 {[%clk 0:02:09]} 16. Bxe4 {[%clk 0:02:17]}  Nxe4 {[%clk 0:02:07]} 17. Bxe7 {[%clk 0:02:06]}  Nc3+ {[%clk 0:02:00]} 18. Kc1 {[%clk 0:02:06]}  Kxe7 {[%clk 0:01:51]} 19. f5 {[%clk 0:02:05]}  Qxa2 {[%clk 0:01:38]} 20. f6+ {[%clk 0:02:01]}  Ke8 {[%clk 0:01:33]} 21. fxg7 {[%clk 0:02:00]}  Rg8 {[%clk 0:01:32]} 22. Rhf1 {[%clk 0:02:00]}  Rxg7 {[%clk 0:01:25]} 23. Nxe6 {[%clk 0:01:55]}  Qb1+ {[%clk 0:01:07]} 24. Kd2 {[%clk 0:01:55]}  Qxb2 {[%clk 0:01:08]} 25. Nxg7+ {[%clk 0:01:54]}  Kd8 {[%clk 0:01:08]} 26. Qxf7 {[%clk 0:01:34]}  Ne4+ {[%clk 0:00:59]} 27. Ke3 {[%clk 0:01:34]}  Qc3+ {[%clk 0:00:42]} 28. Kf4 {[%clk 0:01:31]}  Kc8 {[%clk 0:00:22]} 29. Ne6 {[%clk 0:01:28]}  Kb8 {[%clk 0:00:19]} 30. Nd8 {[%clk 0:01:07]}  Bc8 {[%clk 0:00:19]} 31. Rxd5 {[%clk 0:01:04]}  Nd2 {[%clk 0:00:14]} 32. Qf6 {[%clk 0:00:57]}  Ra7 {[%clk 0:00:09]} 33. Nc6+ {[%clk 0:00:55]}  Ka8 {[%clk 0:00:09]} 34. Nxa7 {[%clk 0:00:56]}  Nxf1 {[%clk 0:00:09]} 35. Qc6+ {[%clk 0:00:53]}  Qxc6 {[%clk 0:00:08]} 36. Nxc6 {[%clk 0:00:54]}  Bb7 {[%clk 0:00:09]} 37. Rd8+ {[%clk 0:00:54]} 1-0


[Site "https://www.chess.com"]